fUSD/lending_fUSD_20260409
["ID","MTS","AMOUNT","RATE_DAILY","PERIOD"]
[420105988,1775680233016,-500.0,0.00013425,2]
[420105989,1775680233026,-150.0,0.00013425,2]
[420105990,1775680233036,-500.0,0.00013425,2]
[420105991,1775680233046,-500.0,0.00013425,2]
[420105992,1775680233055,-150.0,0.00013425,2]
[420105993,1775680233064,-500.0,0.00013425,2]
[420105994,1775680233074,-150.0,0.00013425,2]
[420105995,1775680233084,-500.0,0.00013425,2]
[420105996,1775680233093,-500.0,0.00013425,2]
[420105997,1775680233103,-150.0,0.00013425,2]
[420105998,1775680233112,-500.0,0.00013425,2]
[420105999,1775680233122,-500.0,0.00013425,2]
[420106000,1775680233131,-500.0,0.00013425,2]
[420106001,1775680233149,-500.0,0.00013425,2]
[420106002,1775680233162,-150.0,0.00013425,2]
[420106003,1775680233173,-500.0,0.00013425,2]
[420106004,1775680233183,-500.0,0.00013425,2]
[420106005,1775680233192,-500.0,0.00013425,2]
[420106006,1775680233203,-150.0,0.00013425,2]
[420106007,1775680233213,-509.72471578,0.00013425,2]
[420106008,1775680233223,-500.0,0.00013425,2]
[420106009,1775680233232,-150.0,0.00013425,2]
[420106010,1775680233244,-500.0,0.00013425,2]
[420106011,1775680233254,-150.0,0.00013425,2]
[420106012,1775680233264,-500.0,0.00013425,2]
[420106013,1775680233275,-500.0,0.00013425,2]
[420106014,1775680233285,-150.0,0.00013425,2]
[420106015,1775680233295,-500.0,0.00013425,2]
[420106016,1775680233305,-500.0,0.00013425,2]
[420106017,1775680233316,-515.47425874,0.00013425,2]
[420106018,1775680233327,-150.0,0.00013425,2]
[420106019,1775680233337,-150.0,0.00013425,2]
[420106020,1775680233348,-150.0,0.00013425,2]
[420106021,1775680233358,-150.0,0.00013425,2]
[420106022,1775680233368,-296.36296758,0.00013425,2]
[420106023,1775680233378,-500.0,0.00013425,2]
[420106024,1775680233388,-500.0,0.00013425,2]
[420106025,1775680233398,-500.0,0.00013425,2]
[420106026,1775680233408,-500.0,0.00013425,2]
[420106027,1775680233418,-500.0,0.00013425,2]
[420106028,1775680233428,-500.0,0.00013425,2]
[420106029,1775680233439,-500.0,0.00013425,2]
[420106030,1775680233449,-500.0,0.00013425,2]
[420106031,1775680233460,-500.0,0.00013425,2]
[420106032,1775680233470,-340.0,0.00013425,2]
[420106033,1775680233479,-500.0,0.00013425,2]
[420106034,1775680233489,-150.0,0.00013425,2]
[420106035,1775680233499,-500.0,0.00013425,2]
[420106036,1775680233509,-500.0,0.00013425,2]
[420106037,1775680233519,-150.0,0.00013425,2]
[420106038,1775680233529,-500.0,0.00013425,2]
[420106039,1775680233539,-150.0,0.00013425,2]
[420106040,1775680233550,-528.23575097,0.00013425,2]
[420106041,1775680233559,-150.0,0.00013425,2]
[420106042,1775680233569,-150.0,0.00013425,2]
[420106043,1775680233580,-188.34372111,0.00013425,2]
[420106044,1775680233590,-2006.44,0.00013432,2]
[420106045,1775680233600,-1049.14,0.00013452,2]
[420106046,1775680233611,-208.64,0.00013543,2]
[420106047,1775680233622,-1500.0,0.00013565,2]
[420106048,1775680233632,-153.06,0.00013567,2]
[420106049,1775680233641,-500.0,0.00013567,3]
[420106050,1775680233651,-150.0,0.00013579,2]
[420106051,1775680233661,-3240.0,0.00013603,2]
[420106052,1775680233671,-500.0,0.00013698,2]
[420106053,1775680233681,-166.66,0.00013699,2]
[420106054,1775680233692,-334.06,0.00013699,2]
[420106055,1775680233702,-334.06,0.00013699,2]
[420106056,1775680233712,-334.06,0.00013699,2]
[420106057,1775680233723,-196.08,0.00013699,2]
[420106058,1775680233732,-3000.0,0.00013808,2]
[420106059,1775680233743,-1600.0,0.00013808,2]
[420106060,1775680233754,-160.0,0.00013816,2]
[420106061,1775680233764,-160.0,0.00013816,2]
[420106062,1775680233774,-166.66,0.00013836,2]
[420106063,1775680233785,-172.6844,0.000139,2]
[420106064,1775680233795,-166.66,0.00013973,2]
[420106065,1775680233805,-500.0,0.0001409,2]
[420106066,1775680233815,-166.66,0.0001411,2]
[420106067,1775680233825,-501.0,0.00014179,2]
[420106068,1775680233834,-166.66,0.00014247,2]
[420106069,1775680233844,-433.0,0.00014255,2]
[420106070,1775680233855,-427.4,0.00014288,2]
[420106071,1775680233865,-166.66,0.00014384,2]
[420106072,1775680233875,-153.06,0.00014415,2]
[420106073,1775680233884,-150.0,0.00014442,2]
[420106074,1775680233894,-587.0,0.0001446,2]
[420106075,1775680233905,-427.4,0.00014515,2]
[420106076,1775680233914,-578.20924308,0.00014532,2]
[420106077,1775680233924,-500.0,0.00014532,2]
[420106078,1775680233934,-1235.18214925,0.00014532,2]
[420106079,1775680233943,-305.72770176,0.00014532,2]
[420106080,1775680233953,-623.58710448,0.00014532,2]
[420106081,1775680233963,-151.0,0.00014532,2]
[420106082,1775680233973,-318.22760203,0.00014532,2]
[420106083,1775680233983,-500.0,0.00014587,2]
[420106084,1775680233993,-151.0,0.00014587,2]
[420106085,1775680234003,-1009.05374992,0.00014602,2]
[420106086,1775680234013,-1063.67799535,0.00014602,2]
[420106087,1775680234023,-1137.17005299,0.00014602,2]
[420106088,1775680234034,-1146.97654192,0.00014602,2]
[420106089,1775680234044,-1095.39041873,0.00014602,2]
[420106090,1775680234054,-1083.6389432,0.00014602,2]
[420106091,1775680234064,-1119.77591634,0.00014602,2]
[420106092,1775680234074,-1597.33825218,0.00014602,2]
[420106093,1775680234083,-500.0,0.00014642,2]
[420106094,1775680234093,-151.0,0.00014642,2]
[420106095,1775680234102,-500.0,0.00014697,2]
[420106096,1775680234113,-151.0,0.00014697,2]
[420106097,1775680234122,-2500.0,0.00014725,2]
[420106098,1775680234132,-427.4,0.00014741,2]
[420106099,1775680234142,-151.0,0.00014752,2]
[420106100,1775680234151,-151.0,0.00014807,2]
[420106101,1775680234162,-500.0,0.00014812,2]
[420106102,1775680234171,-2000.0,0.00014812,2]
[420106103,1775680234181,-151.0,0.00014862,2]
[420106104,1775680234191,-151.0,0.00014917,2]
[420106105,1775680234201,-427.4,0.00014968,2]
[420106106,1775680234211,-151.0,0.00014972,2]
[420106107,1775680234221,-300.0,0.00015,2]
[420106108,1775680234231,-160.0,0.00015,2]
[420106109,1775680234241,-151.0,0.00015027,2]
[420106110,1775680234251,-900.0,0.00015068,2]
[420106111,1775680234261,-1280.88388878,0.0001508,2]
[420106112,1775680234270,-151.0,0.00015082,2]
[420106113,1775680234280,-534.73708104,0.0001509,2]
[420106114,1775680234289,-151.0,0.00015137,2]
[420106115,1775680234299,-3000.0,0.00015178,2]
[420106116,1775680234310,-1600.0,0.00015178,2]
[420106117,1775680234319,-151.0,0.00015192,2]
[420106118,1775680234330,-427.4,0.00015194,2]
[420106119,1775680234340,-198.7993,0.000152,2]
[420106120,1775680234350,-204.013705,0.00015208,7]
[420106121,1775680234360,-265.925377,0.00015211,2]
[420106122,1775680234369,-346.981027,0.00015211,7]
[420106123,1775680234380,-160.0,0.00015222,7]
[420106124,1775680234390,-211.712333,0.00015222,7]
[420106125,1775680234400,-263.424667,0.00015222,7]
[420106126,1775680234410,-206.293626,0.00015238,2]
[420106127,1775680234420,-151.0,0.00015247,2]
[420106128,1775680234430,-501.0,0.00015258,3]
[420106129,1775680234441,-153.06,0.00015263,2]
[420106130,1775680234451,-888.71981631,0.00015285,2]
[420106131,1775680234461,-151.0,0.00015302,2]
[420106132,1775680234471,-3083.21540112,0.00015336,2]
[420106133,1775680234481,-1573.0,0.0001536,2]
[420106134,1775680234491,-3083.21540104,0.00015366,2]
[420106135,1775680234501,-3083.21540104,0.00015397,2]
[420106136,1775680234511,-427.4,0.00015421,2]
[420106137,1775680234521,-3083.21540104,0.00015427,2]
[420106138,1775680234531,-931.84,0.00015436,2]
[420106139,1775680234541,-350.0,0.00015448,2]
[420106140,1775680234551,-177.354,0.0001545,2]
[420106141,1775680234561,-2696.458,0.0001545,2]
[420106142,1775680234571,-3083.21540104,0.00015458,2]
[420106143,1775680234581,-500.0,0.00015458,2]
[420106144,1775680234590,-3083.21540104,0.00015488,2]
[420106145,1775680234599,-10000.0,0.000155,2]
[420106146,1775680234609,-5797.93105337,0.0001551,2]
[420106147,1775680234619,-972.87753508,0.0001551,2]
[420106148,1775680234629,-240.58356804,0.0001551,2]
[420106149,1775680234639,-5000.0,0.0001551,2]
[420106150,1775680234648,-3083.21540104,0.00015519,2]
[420106151,1775680234659,-350.0,0.00015521,2]
[420106152,1775680234669,-5797.93105328,0.00015521,2]
[420106153,1775680234678,-5797.93105328,0.00015532,2]
[420106154,1775680234688,-5797.93105328,0.00015543,2]
[420106155,1775680234697,-5263.22805746,0.00015544,2]
[420106156,1775680234707,-622.0,0.00015549,5]
[420106157,1775680234716,-3083.21540104,0.00015549,2]
[420106158,1775680234727,-5797.93105328,0.00015554,2]
[420106159,1775680234736,-5797.93105328,0.00015566,2]
[420106160,1775680234746,-500.0,0.00015566,2]
[420106161,1775680234756,-500.0,0.00015566,2]
[420106162,1775680234765,-392.00957995,0.00015566,2]
[420106163,1775680234775,-500.0,0.00015566,2]
[420106164,1775680234785,-500.0,0.00015566,2]
[420106165,1775680234794,-5797.93105328,0.00015577,2]
[420106166,1775680234804,-5263.22805746,0.00015577,2]
[420106167,1775680234814,-3083.21540104,0.0001558,2]
[420106168,1775680234824,-5797.93105328,0.00015588,2]
[420106169,1775680234835,-2006.44,0.00015595,2]
[420106170,1775680234845,-5797.93105328,0.00015599,2]
[420106171,1775680234854,-500.0,0.00015609,2]
[420106172,1775680234864,-500.0,0.00015609,2]
[420106173,1775680234873,-500.0,0.00015609,2]
[420106174,1775680234883,-500.0,0.00015609,2]
[420106175,1775680234894,-500.0,0.00015609,2]
[420106176,1775680234904,-500.0,0.00015609,2]
[420106177,1775680234914,-159.52,0.00015609,2]
[420106178,1775680234923,-433.12,0.00015609,2]
[420106179,1775680234933,-500.0,0.00015609,2]
[420106180,1775680234943,-500.0,0.00015609,2]
[420106181,1775680234952,-500.0,0.00015609,2]
[420106182,1775680234961,-500.0,0.00015609,2]
[420106183,1775680234971,-500.0,0.00015609,2]
[420106184,1775680234981,-500.0,0.00015609,2]
[420106185,1775680234990,-500.0,0.00015609,2]
[420106186,1775680235000,-500.0,0.00015609,2]
[420106187,1775680235010,-500.0,0.00015609,2]
[420106188,1775680235020,-246.96258362,0.00015609,2]
[420106189,1775680235030,-189.71501251,0.00015609,2]
[420106190,1775680235039,-500.0,0.00015609,2]
[420106191,1775680235049,-500.0,0.00015609,2]
[420106192,1775680235059,-500.0,0.00015609,2]
[420106193,1775680235069,-500.0,0.00015609,2]
[420106194,1775680235079,-500.0,0.00015609,2]
[420106195,1775680235088,-415.48921748,0.00015609,2]
[420106196,1775680235098,-352.76358714,0.00015609,2]
[420106197,1775680235108,-500.0,0.00015609,2]
[420106198,1775680235118,-500.0,0.00015609,2]
[420106199,1775680235128,-259.64145606,0.00015609,2]
[420106200,1775680235137,-500.0,0.00015609,2]
[420106201,1775680235147,-780.0,0.0001561,5]
[420106202,1775680235157,-160.87005995,0.0001561,2]
[420106203,1775680235166,-5797.93105328,0.0001561,2]
[420106204,1775680235176,-3083.21540104,0.0001561,2]
[420106205,1775680235186,-196.20268414,0.0001561,2]
[420106206,1775680235196,-3243.49559648,0.0001561,2]
[420106207,1775680235205,-378.99304844,0.0001561,2]
[420106208,1775680235214,-1000.0,0.0001561,2]
[420106209,1775680235223,-522758.10715593,0.0001561,2]
[420106211,1775680237658,-269.17316,0.000152,7]
[420106212,1775680237668,-646.50864285,0.00015298,2]
[420106213,1775680237943,-456.56422688,0.00015298,2]
[420106214,1775680237952,-180.32523299,0.0001561,2]
[420106215,1775680237962,-82.28054013,0.0001561,2]
[420106224,1775680240036,-1033.98538716,0.00015298,2]
[420106225,1775680240046,-69.88168237,0.0001561,2]
[420106226,1775680240055,-977241.89284407,0.0001561,2]
[420106227,1775680240064,-28668.4034,0.0001561,2]
[420106228,1775680240074,-1372.65078494,0.0001561,2]
[420106229,1775680240084,-1328.27659266,0.00015628,2]
[420106230,1775680240093,-250.0,0.00015638,2]
[420106231,1775680240102,-350.0,0.00015646,2]
[420106232,1775680240112,-427.4,0.00015647,2]
[420106233,1775680240122,-1000.0,0.00015662,2]
[420106234,1775680240131,-160.8700599,0.00015668,2]
[420106235,1775680240140,-1000.0,0.00015676,2]
[420106236,1775680240150,-3727.97775672,0.0001568,2]
[420106237,1775680240159,-1573.0,0.0001568,2]
[420106238,1775680240169,-940.0,0.000157,2]
[420106239,1775680240178,-1411.152464,0.00015705,2]
[420106240,1775680240188,-532432.6139995,0.00015705,2]
[420106241,1775680240197,-229.75,0.00015705,2]
[420106242,1775680240207,-240.58356804,0.00015705,2]
[420106243,1775680240216,-888.9031288,0.00015705,2]
[420106244,1775680240225,-151.0,0.00015707,2]
[420106245,1775680240235,-151.0,0.00015707,2]
[420106246,1775680240245,-666.0,0.00015709,2]
[420106247,1775680240254,-666.0,0.00015709,2]
[420106248,1775680240264,-500.0,0.00015709,2]
[420106249,1775680240273,-500.0,0.00015709,2]
[420106250,1775680240283,-500.0,0.00015709,2]
[420106251,1775680240293,-500.0,0.00015709,2]
[420106252,1775680240303,-500.0,0.00015709,2]
[420106253,1775680240313,-500.0,0.00015709,2]
[420106254,1775680240323,-500.0,0.00015709,2]
[420106255,1775680240334,-500.0,0.00015709,2]
[420106256,1775680240344,-500.0,0.00015709,2]
[420106257,1775680240355,-592.48,0.00015709,2]
[420106258,1775680240366,-2181488.30176768,0.0001571,2]
[420106259,1775680240667,-396.46210474,0.00015298,2]
[420106279,1775680242842,-2471.0,0.00012894,2]
[420106280,1775680242852,-725.42974483,0.00015298,2]
[420106281,1775680242862,-1000.64677997,0.00015298,2]
[420106282,1775680242871,-5000.0,0.0001551,2]
[420106283,1775680242881,-2485.31850448,0.0001568,2]
[420106284,1775680242890,-158.48041529,0.0001571,2]
[420106313,1775680243489,-26672.00533425,0.0001571,2]
[420106316,1775680243517,-824.0,0.0001571,2]
[420106337,1775680245494,-1135.45848636,0.00015298,2]
[420106338,1775680245505,-1013.41668654,0.00015298,2]
[420106339,1775680245515,-1656.87900299,0.0001568,2]
[420106340,1775680245524,-349.28238959,0.0001571,2]
[420106341,1775680245537,-1427.52,0.0001571,2]
[420106342,1775680245549,-36035.14752852,0.0001571,2]
[420106343,1775680245561,-3080.81835219,0.0001571,2]
[420106344,1775680245924,-445.5,0.00015298,2]
[420106345,1775680245936,-628.45516249,0.00015298,2]
[420106346,1775680245946,-408.86576468,0.0001558,2]
[420106347,1775680245958,-1235.34021761,0.0001558,2]
[420106354,1775681356736,-171.15547456,0.00010493,2]
[420106362,1775681432523,-828.84452544,0.00010493,2]
[420106363,1775681432533,-250.0,0.00010585,2]
[420106364,1775681432543,-250.0,0.00010773,2]
[420106365,1775681432552,-1000.0,0.0001086,2]
[420106366,1775681432562,-2000.0,0.00010909,2]
[420106367,1775681432572,-500.0,0.00010925,2]
[420106368,1775681432582,-15652.05,0.00010931,2]
[420106369,1775681432591,-709.5,0.00010988,2]
[420106370,1775681432601,-1600.0,0.00011262,2]
[420106371,1775681432610,-166.66,0.00011376,2]
[420106372,1775681432620,-1200.0,0.00011472,2]
[420106373,1775681432629,-1000.0,0.00011474,2]
[420106374,1775681432638,-300.0,0.00011506,2]
[420106375,1775681432647,-150.99,0.00011507,2]
[420106376,1775681432656,-1814.66,0.00011507,2]
[420106377,1775681432666,-5188.52,0.00011507,2]
[420106378,1775681432675,-1000.0,0.00011525,2]
[420106379,1775681432685,-150.0,0.00011541,2]
[420106380,1775681432695,-154.20387248,0.00011542,2]
[420106381,1775681432704,-250.0,0.00011542,2]
[420106382,1775681432714,-195.0,0.00011542,2]
[420106383,1775681432724,-195.0,0.00011542,2]
[420106384,1775681432734,-600.0,0.00011542,2]
[420106385,1775681432743,-600.0,0.00011542,2]
[420106386,1775681432753,-600.0,0.00011542,2]
[420106387,1775681432762,-195.0,0.00011542,2]
[420106388,1775681432772,-195.0,0.00011542,2]
[420106389,1775681432781,-330.34925995,0.00011542,2]
[420106390,1775681432790,-265.76204215,0.00011542,2]
[420106391,1775681432800,-600.0,0.00011542,2]
[420106392,1775681432809,-600.0,0.00011542,2]
[420106393,1775681432819,-300.0,0.00011542,2]
[420106394,1775681432828,-300.0,0.00011542,2]
[420106395,1775681432838,-300.0,0.00011542,2]
[420106396,1775681432848,-300.0,0.00011542,2]
[420106397,1775681432857,-21841.62347265,0.000117,2]
[420106398,1775681432870,-2416.99454353,0.000117,2]
[420106399,1775681433018,-900.0,0.000117,2]
[420106400,1775681440141,-1005531.00438382,0.000117,2]
[420106401,1775681440150,-28629.8581,0.000117,2]
[420106402,1775681440160,-166.66,0.00011751,2]
[420106403,1775681440169,-500.0,0.00011799,2]
[420106404,1775681440179,-187.248611,0.00011799,2]
[420106405,1775681440188,-500.0,0.00011799,2]
[420106406,1775681440198,-274.2320703,0.00011799,2]
[420106407,1775681440207,-500.0,0.00011799,2]
[420106408,1775681440216,-500.0,0.00011799,2]
[420106409,1775681440225,-500.0,0.00011799,2]
[420106410,1775681440235,-500.0,0.00011799,2]
[420106411,1775681440245,-500.0,0.00011799,2]
[420106412,1775681440255,-500.0,0.00011799,2]
[420106413,1775681440264,-500.0,0.00011799,2]
[420106414,1775681440273,-500.0,0.00011799,2]
[420106415,1775681440283,-500.0,0.00011799,2]
[420106416,1775681440293,-500.0,0.00011799,2]
[420106417,1775681440304,-500.0,0.00011799,2]
[420106418,1775681440316,-500.0,0.00011799,2]
[420106419,1775681440327,-500.0,0.00011799,2]
[420106420,1775681440335,-500.0,0.00011799,2]
[420106421,1775681440345,-164.08303067,0.000118,2]
[420106422,1775681440355,-13920.32217218,0.000118,2]
[420106423,1775681440365,-355.535,0.000118,2]
[420106424,1775681440375,-151.0,0.00011892,2]
[420106425,1775681440385,-151.0,0.00011892,2]
[420106426,1775681440395,-151.0,0.00011892,2]
[420106427,1775681440406,-151.0,0.00011892,2]
[420106428,1775681440415,-151.0,0.00011892,2]
[420106429,1775681440425,-151.0,0.00011892,2]
[420106430,1775681440435,-151.0,0.00011892,2]
[420106431,1775681440444,-151.0,0.00011892,2]
[420106432,1775681440454,-200.0,0.00011892,2]
[420106433,1775681440464,-151.0,0.00011892,2]
[420106434,1775681440474,-151.0,0.00011892,2]
[420106435,1775681440484,-151.0,0.00011892,2]
[420106436,1775681440494,-151.0,0.00011892,2]
[420106437,1775681440504,-151.0,0.00011892,2]
[420106438,1775681440514,-151.0,0.00011892,2]
[420106439,1775681440524,-151.0,0.00011892,2]
[420106440,1775681440533,-500.0,0.00011892,2]
[420106441,1775681440543,-1199.20597015,0.00011892,2]
[420106442,1775681440552,-152.45672918,0.00011892,2]
[420106443,1775681440561,-151.0,0.00011897,2]
[420106444,1775681440571,-701.58124042,0.00011987,2]
[420106445,1775681440580,-1000.0,0.00012087,2]
[420106446,1775681440590,-166.66,0.00012127,2]
[420106447,1775681440600,-150.0,0.000122,2]
[420106448,1775681440610,-13920.32217218,0.00012222,2]
[420106449,1775681440621,-2000.0,0.00012272,2]
[420106450,1775681440631,-14458.54659599,0.00012368,2]
[420106451,1775681440641,-278.98,0.00012413,2]
[420106452,1775681440650,-200.0,0.0001244,2]
[420106453,1775681440660,-1140.85523569,0.0001244,2]
[420106454,1775681440670,-500.0,0.0001244,2]
[420106455,1775681440680,-500.0,0.0001244,2]
[420106456,1775681440690,-500.0,0.0001244,2]
[420106457,1775681440699,-500.0,0.0001245,2]
[420106458,1775681440709,-164.08303067,0.00012483,2]
[420106459,1775681440718,-166.66,0.00012502,2]
[420106460,1775681440728,-255.0,0.00012603,2]
[420106461,1775681440738,-1680.0,0.00012619,2]
[420106462,1775681440748,-152.05690252,0.00012634,2]
[420106463,1775681440758,-420.0,0.00012637,2]
[420106464,1775681440768,-13920.32217218,0.00012644,2]
[420106465,1775681440778,-1600.0,0.0001267,2]
[420106466,1775681440788,-1000.0,0.00012732,2]
[420106467,1775681440797,-166.66,0.00012878,2]
[420106468,1775681440808,-1046.0,0.00012904,2]
[420106469,1775681440817,-1363.382,0.00012904,2]
[420106470,1775681440826,-631.205,0.00012904,2]
[420106471,1775681440835,-1269.291,0.00012904,2]
[420106472,1775681440845,-277.201,0.00012904,2]
[420106473,1775681440854,-415.0,0.00012904,2]
[420106474,1775681440864,-3772.0,0.00012904,2]
[420106475,1775681440874,-2471.0,0.00012904,2]
[420106476,1775681440884,-200.0,0.00012988,2]
[420106477,1775681440894,-1000.0,0.00012988,2]
[420106478,1775681440903,-1000.0,0.00012988,2]
[420106479,1775681440912,-1000.0,0.00012988,2]
[420106480,1775681440922,-1000.0,0.00012998,2]
[420106481,1775681440931,-250.0,0.00013,2]
[420106482,1775681440940,-34670.33320395,0.00013067,2]
[420106483,1775681440949,-13920.32217218,0.00013067,2]
[420106484,1775681440959,-501.0,0.000131,2]
[420106485,1775681440968,-208.37237059,0.00013151,2]
[420106486,1775681440978,-500.0,0.00013151,2]
[420106487,1775681440987,-500.0,0.00013151,2]
[420106488,1775681440997,-500.0,0.00013151,2]
[420106489,1775681441006,-500.0,0.00013151,2]
[420106490,1775681441015,-150.0,0.00013151,2]
[420106491,1775681441025,-150.0,0.00013151,2]
[420106492,1775681441034,-500.0,0.00013151,2]
[420106493,1775681441044,-150.0,0.00013151,2]
[420106494,1775681441053,-150.0,0.00013151,2]
[420106495,1775681441063,-500.0,0.00013151,2]
[420106496,1775681441072,-150.0,0.00013151,2]
[420106497,1775681441082,-500.0,0.00013151,2]
[420106498,1775681441091,-256.56798922,0.00013151,2]
[420106499,1775681441100,-500.0,0.00013151,2]
[420106500,1775681441110,-182.15202066,0.00013151,2]
[420106501,1775681441120,-500.0,0.00013151,2]
[420106502,1775681441130,-595.10163207,0.00013151,2]
[420106503,1775681441140,-500.0,0.00013151,2]
[420106504,1775681441149,-500.0,0.00013151,2]
[420106505,1775681441159,-500.0,0.00013151,2]
[420106506,1775681441168,-500.0,0.00013151,2]
[420106507,1775681441178,-500.0,0.00013151,2]
[420106508,1775681441188,-500.0,0.00013151,2]
[420106509,1775681441199,-500.0,0.00013151,2]
[420106510,1775681441209,-165.86332065,0.00013151,2]
[420106511,1775681441219,-500.0,0.00013151,2]
[420106512,1775681441229,-500.0,0.00013151,2]
[420106513,1775681441239,-500.0,0.00013151,2]
[420106514,1775681441249,-500.0,0.00013151,2]
[420106515,1775681441259,-341.376807,0.00013151,2]
[420106516,1775681441268,-500.0,0.00013151,2]
[420106517,1775681441278,-500.0,0.00013151,2]
[420106518,1775681441288,-399.40597196,0.00013151,2]
[420106519,1775681441298,-500.0,0.00013151,2]
[420106520,1775681441307,-500.0,0.00013151,2]
[420106521,1775681441316,-339.81765262,0.00013151,2]
[420106522,1775681441325,-500.0,0.00013151,2]
[420106523,1775681441335,-500.0,0.00013151,2]
[420106524,1775681441344,-500.0,0.00013151,2]
[420106525,1775681441354,-388.39476597,0.00013151,2]
[420106526,1775681441364,-500.0,0.00013151,2]
[420106527,1775681441373,-500.0,0.00013151,2]
[420106528,1775681441382,-500.0,0.00013151,2]
[420106529,1775681441392,-500.0,0.00013151,2]
[420106530,1775681441401,-500.0,0.00013151,2]
[420106531,1775681441410,-287.13980161,0.00013151,2]
[420106532,1775681441420,-889.98,0.00013151,2]
[420106533,1775681441430,-150.88467267,0.00013151,2]
[420106534,1775681441439,-150.0,0.00013151,2]
[420106535,1775681441449,-150.0,0.00013151,2]
[420106536,1775681441459,-150.0,0.00013151,2]
[420106537,1775681441469,-150.0,0.00013151,2]
[420106538,1775681441479,-286.3666211,0.00013151,2]
[420106539,1775681441489,-583.0,0.00013151,2]
[420106540,1775681441499,-583.0,0.00013151,2]
[420106541,1775681441509,-583.0,0.00013151,2]
[420106542,1775681441519,-583.0,0.00013151,2]
[420106543,1775681441529,-583.0,0.00013151,2]
[420106544,1775681441539,-583.0,0.00013151,2]
[420106545,1775681441549,-583.0,0.00013151,2]
[420106546,1775681441558,-583.0,0.00013151,2]
[420106547,1775681441570,-583.0,0.00013151,2]
[420106548,1775681441580,-583.0,0.00013151,2]
[420106549,1775681441590,-583.0,0.00013151,2]
[420106550,1775681441599,-583.0,0.00013151,2]
[420106551,1775681441609,-583.0,0.00013151,2]
[420106552,1775681441619,-583.0,0.00013151,2]
[420106553,1775681441629,-583.0,0.00013151,2]
[420106554,1775681441638,-583.0,0.00013151,2]
[420106555,1775681441648,-583.0,0.00013151,2]
[420106556,1775681441659,-583.0,0.00013151,2]
[420106557,1775681441669,-583.0,0.00013151,2]
[420106558,1775681441679,-583.0,0.00013151,2]
[420106559,1775681441688,-583.0,0.00013151,2]
[420106560,1775681441698,-583.0,0.00013151,2]
[420106561,1775681441708,-583.0,0.00013151,2]
[420106562,1775681441717,-605.0,0.00013151,2]
[420106563,1775681441727,-500.0,0.00013151,2]
[420106564,1775681441736,-520.29151548,0.00013151,2]
[420106565,1775681441746,-500.0,0.00013151,2]
[420106566,1775681441756,-500.0,0.00013151,2]
[420106567,1775681441765,-500.0,0.00013151,2]
[420106568,1775681441775,-500.0,0.00013151,2]
[420106569,1775681441784,-152.12238144,0.00013151,2]
[420106570,1775681441794,-160.5097946,0.00013151,2]
[420106571,1775681441803,-150.0,0.00013151,2]
[420106572,1775681441812,-150.0,0.00013151,2]
[420106573,1775681441821,-150.0,0.00013151,2]
[420106574,1775681441831,-150.0,0.00013151,2]
[420106575,1775681441841,-150.0,0.00013151,2]
[420106576,1775681441850,-150.0,0.00013151,2]
[420106577,1775681441860,-150.0,0.00013151,2]
[420106578,1775681441869,-150.0,0.00013151,2]